fUSD/lending_fUSD_20240125
["ID","MTS","AMOUNT","RATE_DAILY","PERIOD"]
[312664120,1706141504033,-500.0,0.00050958,31]
[312664121,1706141504042,-687.75,0.00050958,31]
[312664122,1706141504051,-742.38,0.00050958,31]
[312664123,1706141504061,-2393.75,0.00050958,31]
[312664124,1706141504070,-500.0,0.00050958,31]
[312664125,1706141504081,-500.0,0.00050958,31]
[312664126,1706141504091,-5066.61,0.00050958,31]
[312664127,1706141504100,-500.0,0.00050958,31]
[312664128,1706141504109,-500.0,0.00050958,31]
[312664129,1706141504119,-572.67,0.00050958,31]
[312664130,1706141504128,-500.0,0.00050958,31]
[312664131,1706141504137,-2453.54,0.00050958,31]
[312664132,1706141504147,-500.0,0.00050958,31]
[312664133,1706141504156,-2701.77,0.00050958,31]
[312664134,1706141504167,-500.0,0.00050958,31]
[312664135,1706141504177,-500.0,0.00050958,31]
[312664136,1706141504187,-580.27,0.00050958,31]
[312664137,1706141504197,-584.5,0.00050958,31]
[312664138,1706141504206,-500.0,0.00050958,31]
[312664139,1706141504216,-500.0,0.00050958,31]
[312664140,1706141504226,-1141.79,0.00050958,31]
[312664141,1706141504235,-1360.18,0.00050958,31]
[312664142,1706141504245,-1000.0,0.00050958,2]
[312664143,1706141504254,-693.55,0.00050958,31]
[312664144,1706141504264,-543.89,0.00050958,31]
[312664145,1706141504275,-683.16,0.00050958,31]
[312664146,1706141504284,-500.0,0.00050958,31]
[312664147,1706141504294,-500.0,0.00050958,31]
[312664148,1706141504306,-500.0,0.00050958,31]
[312664149,1706141504315,-500.0,0.00050958,31]
[312664150,1706141504325,-608.94,0.00050958,31]
[312664151,1706141504335,-835.92,0.00050958,31]
[312664152,1706141504346,-1468.94,0.00050958,31]
[312664153,1706141504355,-578.45,0.00050958,31]
[312664154,1706141504365,-500.0,0.00050958,31]
[312664155,1706141504374,-500.0,0.00050958,31]
[312664156,1706141504385,-552.79,0.00050958,31]
[312664157,1706141504394,-2066.55,0.00050958,31]
[312664158,1706141504404,-706.67,0.00050958,31]
[312664159,1706141504413,-540.87,0.00050958,31]
[312664160,1706141504422,-582.15,0.00050958,31]
[312664161,1706141504432,-500.0,0.00050958,31]
[312664162,1706141504441,-500.0,0.00050958,31]
[312664163,1706141504451,-639.06,0.00050958,31]
[312664164,1706141504460,-500.0,0.00050958,31]
[312664165,1706141504470,-500.0,0.00050958,31]
[312664166,1706141504479,-740.88,0.00050958,31]
[312664167,1706141504489,-700.44,0.00050958,31]
[312664168,1706141504499,-500.0,0.00050958,31]
[312664169,1706141504508,-500.0,0.00050958,31]
[312664170,1706141504518,-500.0,0.00050958,31]
[312664171,1706141504528,-537.04,0.00050958,31]
[312664172,1706141504537,-751.1,0.00050958,31]
[312664173,1706141504546,-395.03112958,0.00050958,31]
[312664174,1706141504556,-677.43,0.00050958,31]
[312664175,1706141504565,-500.0,0.00050958,31]
[312664176,1706141504574,-2280.94,0.00050958,31]
[312664177,1706141504584,-500.0,0.00050958,31]
[312664178,1706141504594,-500.0,0.00050958,31]
[312664179,1706141504603,-500.0,0.00050958,31]
[312664180,1706141504612,-547.24,0.00050958,31]
[312664181,1706141504622,-500.0,0.00050958,31]
[312664182,1706141504631,-500.0,0.00050958,31]
[312664183,1706141504640,-1060.9,0.00050958,31]
[312664184,1706141504650,-581.01,0.00050958,31]
[312664185,1706141504659,-500.0,0.00050958,31]
[312664186,1706141504668,-500.0,0.00050958,31]
[312664187,1706141504678,-537.1,0.00050958,31]
[312664188,1706141504687,-500.0,0.00050958,31]
[312664189,1706141504696,-778.86,0.00050958,31]
[312664190,1706141504706,-857.21,0.00050958,31]
[312664191,1706141504715,-500.0,0.00050958,31]
[312664192,1706141504724,-1735.79,0.00050958,31]
[312664193,1706141504733,-500.0,0.00050958,31]
[312664194,1706141504743,-500.0,0.00050958,31]
[312664195,1706141504753,-608.69,0.00050958,31]
[312664196,1706141504762,-606.25,0.00050958,31]
[312664197,1706141504772,-500.0,0.00050958,31]
[312664198,1706141504781,-500.0,0.00050958,31]
[312664199,1706141504790,-500.0,0.00050958,31]
[312664200,1706141504800,-712.54,0.00050958,31]
[312664201,1706141504809,-645.15,0.00050958,31]
[312664202,1706141504818,-1073.61,0.00050958,31]
[312664203,1706141504828,-660.57,0.00050958,31]
[312664204,1706141504837,-1320.68,0.00050958,31]
[312664205,1706141504847,-655.7,0.00050958,31]
[312664206,1706141504856,-992.0,0.00050958,31]
[312664207,1706141504866,-500.0,0.00050958,31]
[312664208,1706141504875,-4966.08,0.00050958,31]
[312664209,1706141504884,-1315.35,0.00050958,31]
[312664210,1706141504894,-500.0,0.00050958,31]
[312664211,1706141504903,-500.0,0.00050958,31]
[312664212,1706141504913,-796.46,0.00050958,31]
[312664213,1706141504921,-500.0,0.00050958,31]
[312664214,1706141504931,-500.0,0.00050958,31]
[312664215,1706141504940,-500.0,0.00050958,31]
[312664216,1706141504951,-3061.04,0.00050958,31]
[312664217,1706141504960,-564.19,0.00050958,31]
[312664218,1706141504970,-860.59,0.00050958,31]
[312664219,1706141504979,-500.0,0.00050958,31]
[312664220,1706141504989,-553.53,0.00050958,31]
[312664221,1706141504999,-500.0,0.00050958,31]
[312664222,1706141505009,-500.0,0.00050958,31]
[312664223,1706141505018,-2426.6,0.00050958,31]
[312664224,1706141505029,-591.74194263,0.00050958,31]
[312664225,1706141505039,-500.0,0.00050958,31]
[312664226,1706141505049,-547.26,0.00050958,31]
[312664227,1706141505059,-649.59,0.00050958,31]
[312664228,1706141505069,-1086.36,0.00050958,31]
[312664229,1706141505079,-959.04,0.00050958,31]
[312664230,1706141505089,-500.0,0.00050958,31]
[312664231,1706141505098,-703.22,0.00050958,31]
[312664232,1706141505108,-600.26,0.00050958,31]
[312664233,1706141505118,-740.74,0.00050958,31]
[312664234,1706141505127,-787.85,0.00050958,31]
[312664235,1706141505137,-500.0,0.00050958,31]
[312664236,1706141505147,-765.5,0.00050958,31]
[312664237,1706141505156,-730.54,0.00050958,31]
[312664238,1706141505166,-500.0,0.00050958,31]
[312664239,1706141505175,-500.0,0.00050958,31]
[312664240,1706141505185,-599.29,0.00050958,31]
[312664241,1706141505194,-500.0,0.00050958,31]
[312664242,1706141505204,-737.72,0.00050958,31]
[312664243,1706141505214,-500.55,0.00050958,31]
[312664244,1706141505223,-500.0,0.00050958,31]
[312664245,1706141505232,-847.8,0.00050958,31]
[312664246,1706141505241,-539.53,0.00050958,31]
[312664247,1706141505250,-500.0,0.00050958,31]
[312664248,1706141505259,-501.79,0.00050958,31]
[312664249,1706141505268,-500.0,0.00050958,31]
[312664250,1706141505280,-714.81,0.00050958,31]
[312664251,1706141505290,-560.58,0.00050958,31]
[312664252,1706141505301,-765.11,0.00050958,31]
[312664253,1706141505311,-500.0,0.00050958,31]
[312664254,1706141505321,-1987.70230644,0.00050958,14]
[312664255,1706141505331,-500.0,0.00050958,31]
[312664256,1706141505341,-500.0,0.00050958,31]
[312664257,1706141505350,-1451.54,0.00050958,31]
[312664258,1706141505359,-500.0,0.00050958,31]
[312664259,1706141505369,-764.66,0.00050958,31]
[312664260,1706141505380,-673.27,0.00050958,31]
[312664261,1706141505390,-1105.43,0.00050958,31]
[312664262,1706141505399,-3144.18,0.00050958,31]
[312664263,1706141505409,-500.0,0.00050958,31]
[312664264,1706141505418,-500.0,0.00050958,31]
[312664265,1706141505427,-748.16,0.00050958,31]
[312664266,1706141505436,-678.69,0.00050958,31]
[312664267,1706141505445,-500.0,0.00050958,120]
[312664268,1706141505455,-548.31,0.00050958,31]
[312664269,1706141505465,-500.0,0.00050958,31]
[312664270,1706141505474,-532.81,0.00050958,31]
[312664271,1706141505484,-500.0,0.00050958,31]
[312664272,1706141505493,-515.5,0.00050958,31]
[312664273,1706141505503,-792.67,0.00050958,31]
[312664274,1706141505513,-500.0,0.00050958,31]
[312664275,1706141505523,-621.25,0.00050958,31]
[312664276,1706141505532,-1247.69,0.00050958,31]
[312664277,1706141505541,-612.72,0.00050958,31]
[312664278,1706141505551,-1295.4,0.00050958,31]
[312664279,1706141505560,-820.44,0.00050958,31]
[312664280,1706141505569,-500.0,0.00050958,31]
[312664281,1706141505580,-939.98,0.00050958,31]
[312664282,1706141505589,-689.9,0.00050958,31]
[312664283,1706141505598,-500.0,0.00050958,31]
[312664284,1706141505608,-500.0,0.00050958,31]
[312664285,1706141505618,-650.74,0.00050958,31]
[312664286,1706141505627,-3710.41,0.00050958,31]
[312664287,1706141505636,-594.93,0.00050958,2]
[312664288,1706141505646,-646.07,0.00050958,31]
[312664289,1706141505655,-500.0,0.00050958,31]
[312664290,1706141505664,-500.0,0.00050958,31]
[312664291,1706141505674,-2728.94,0.00050958,31]
[312664292,1706141505683,-500.0,0.00050958,31]
[312664293,1706141505692,-1281.32,0.00050958,31]
[312664294,1706141505702,-1822.59,0.00050958,2]
[312664295,1706141505711,-500.0,0.00050958,31]
[312664296,1706141505721,-500.0,0.00050958,31]
[312664297,1706141505730,-500.0,0.00050958,31]
[312664298,1706141505739,-500.0,0.00050958,31]
[312664299,1706141505749,-500.0,0.00050958,31]
[312664300,1706141505758,-500.0,0.00050958,31]
[312664301,1706141505768,-1129.79,0.00050958,31]
[312664302,1706141505777,-724.18,0.00050958,31]
[312664303,1706141505786,-605.74,0.00050958,31]
[312664304,1706141505795,-500.0,0.00050958,31]
[312664305,1706141505804,-500.0,0.00050958,31]
[312664306,1706141505813,-824.96,0.00050958,31]
[312664307,1706141505822,-887.42,0.00050958,31]
[312664308,1706141505832,-500.0,0.00050958,31]
[312664309,1706141505841,-500.0,0.00050958,31]
[312664310,1706141505850,-866.53,0.00050958,31]
[312664311,1706141505860,-757.86,0.00050958,2]
[312664312,1706141505869,-510.96,0.00050958,31]
[312664313,1706141505879,-500.0,0.00050958,31]
[312664314,1706141505888,-537.86596482,0.00050958,31]
[312664315,1706141505897,-500.0,0.00050958,31]
[312664316,1706141505973,-887.79,0.00050958,31]
[312664317,1706141505982,-566.99,0.00050958,31]
[312664318,1706141505991,-2577.64223759,0.0005096,120]
[312664319,1706141506000,-452.49609033,0.00050964,60]
[312664320,1706141506009,-34220.93947978,0.0005098,30]
[312664321,1706141506018,-584.90819405,0.00050981,60]
[312664322,1706141506030,-100000.0,0.00051,41]
[312664323,1706141506039,-4000.0,0.00051,70]
[312664324,1706141506048,-4799.66698014,0.00051,4]
[312664325,1706141506057,-14486.50215289,0.00051,2]
[312664326,1706141506066,-1000000.0,0.00051,120]
[312664327,1706141506074,-600.0,0.00051,52]
[312664328,1706141506085,-237.67083947,0.00051,30]
[312664329,1706141506094,-6040.0,0.00051,120]
[312664330,1706141506103,-10636.35,0.00051,120]
[312664331,1706141506112,-274.95021142,0.00051,45]
[312664332,1706141506120,-202.92946736,0.00051,30]
[312664333,1706141506129,-185.13722687,0.00051,30]
[312664334,1706141506138,-514.00421171,0.00051,45]
[312664335,1706141506147,-583.74923397,0.00051,45]
[312664336,1706141506156,-482.63206146,0.00051,45]
[312664337,1706141506165,-183.1989,0.00051,2]
[312664338,1706141506174,-863.37326935,0.00051,45]
[312664339,1706141506183,-300.0,0.00051,29]
[312664340,1706141506192,-200.0,0.00051,29]
[312664341,1706141506202,-267.50502681,0.00051,2]
[312664342,1706141506211,-210.0,0.00051,120]
[312664343,1706141506220,-804.01104109,0.00051,45]
[312664344,1706141506229,-150.0,0.00051,29]
[312664345,1706141506238,-156.43151779,0.00051039,60]
[312664346,1706141506247,-176.58520058,0.0005106,60]
[312664347,1706141506256,-1463.20744382,0.00051064,60]
[312664348,1706141506265,-584.90819405,0.00051067,60]
[312664349,1706141506274,-176.58520058,0.00051093,60]
[312664350,1706141506285,-1463.20744382,0.00051095,60]
[312664351,1706141506294,-647.69,0.00051095,120]
[312664352,1706141506305,-1463.20744382,0.00051097,60]
[312664353,1706141506314,-295.69924502,0.000511,120]
[312664354,1706141506323,-158.0,0.000511,60]
[312664355,1706141506335,-153.21386404,0.00051122,60]
[312664356,1706141506344,-155.25098285,0.00051166,60]
[312664357,1706141506353,-150.37716717,0.00051175,60]
[312664358,1706141506362,-432.40353136,0.00051188,60]
[312664359,1706141506372,-176.58520058,0.00051196,60]
[312664360,1706141506382,-207.27,0.000512,120]
[312664361,1706141506391,-156.43151779,0.00051207,60]
[312664362,1706141506400,-167.05741097,0.00051214,60]
[312664363,1706141506410,-158.39181887,0.00051223,60]
[312664364,1706141506419,-500.0,0.00051232,31]
[312664365,1706141506428,-433.04338854,0.00051232,31]
[312664366,1706141506437,-500.0,0.00051232,31]
[312664367,1706141506446,-500.0,0.00051232,31]
[312664368,1706141506455,-500.0,0.00051232,31]
[312664369,1706141506465,-571.87,0.00051232,31]
[312664370,1706141506475,-500.0,0.00051232,31]
[312664371,1706141506485,-500.0,0.00051232,31]
[312664372,1706141506494,-500.0,0.00051232,31]
[312664373,1706141506503,-500.0,0.00051232,31]
[312664374,1706141506511,-500.0,0.00051232,31]
[312664375,1706141506521,-500.0,0.00051232,31]
[312664376,1706141506529,-500.0,0.00051232,31]
[312664377,1706141506538,-500.0,0.00051232,31]
[312664378,1706141506548,-500.0,0.00051232,31]
[312664379,1706141506557,-500.0,0.00051232,31]
[312664380,1706141506566,-500.0,0.00051232,31]
[312664381,1706141506574,-167.10165736,0.00051232,31]
[312664382,1706141506584,-500.0,0.00051232,31]
[312664383,1706141506593,-500.0,0.00051232,31]
[312664384,1706141506602,-500.0,0.00051232,31]
[312664385,1706141506611,-500.0,0.00051232,31]
[312664386,1706141506620,-500.0,0.00051232,31]
[312664387,1706141506629,-250.0,0.00051232,31]
[312664388,1706141506638,-500.0,0.00051232,31]
[312664389,1706141506648,-500.0,0.00051232,31]
[312664390,1706141506657,-500.0,0.00051232,31]
[312664391,1706141506666,-500.0,0.00051232,31]
[312664392,1706141506675,-500.0,0.00051232,31]
[312664393,1706141506684,-500.0,0.00051232,31]
[312664394,1706141506693,-500.0,0.00051232,31]
[312664395,1706141506702,-500.0,0.00051232,31]
[312664396,1706141506711,-500.0,0.00051232,31]
[312664397,1706141506720,-500.0,0.00051232,31]
[312664398,1706141506729,-500.0,0.00051232,31]
[312664399,1706141506738,-500.0,0.00051232,31]
[312664400,1706141506747,-569.3,0.00051232,31]
[312664401,1706141506756,-547.01,0.00051232,31]
[312664402,1706141506765,-500.0,0.00051232,31]
[312664403,1706141506774,-500.0,0.00051232,31]
[312664404,1706141506783,-500.0,0.00051232,31]
[312664405,1706141506792,-500.0,0.00051232,31]
[312664406,1706141506801,-510.64,0.00051232,31]
[312664407,1706141506810,-500.0,0.00051232,31]
[312664408,1706141506819,-1000.0,0.00051232,7]
[312664409,1706141506829,-176.07466078,0.00051232,10]
[312664410,1706141506838,-500.0,0.00051232,31]
[312664411,1706141506847,-500.0,0.00051232,31]
[312664412,1706141506857,-500.0,0.00051232,31]
[312664413,1706141506867,-500.0,0.00051232,31]
[312664414,1706141506876,-500.0,0.00051232,31]
[312664415,1706141506885,-500.0,0.00051232,31]
[312664416,1706141506895,-754.82,0.00051232,31]
[312664417,1706141506904,-500.0,0.00051232,31]
[312664418,1706141506914,-500.0,0.00051232,31]
[312664419,1706141506924,-500.0,0.00051232,31]
[312664420,1706141506933,-917.61,0.00051232,31]
[312664421,1706141506943,-500.0,0.00051232,31]
[312664422,1706141506953,-500.0,0.00051232,2]
[312664423,1706141506963,-500.0,0.00051232,31]
[312664424,1706141506972,-500.0,0.00051232,31]
[312664425,1706141506981,-665.93,0.00051232,31]
[312664426,1706141506990,-500.0,0.00051232,31]
[312664427,1706141506999,-702.69,0.00051232,31]
[312664428,1706141507009,-500.0,0.00051232,31]
[312664429,1706141507019,-500.0,0.00051232,31]
[312664430,1706141507028,-500.0,0.00051232,31]
[312664431,1706141507038,-619.19,0.00051232,31]
[312664432,1706141507048,-953.39,0.00051232,31]
[312664433,1706141507057,-500.0,0.00051232,2]
[312664434,1706141507066,-500.0,0.00051232,31]
[312664435,1706141507075,-500.0,0.00051232,31]
[312664436,1706141507086,-500.0,0.00051232,31]
[312664437,1706141507095,-500.0,0.00051232,31]
[312664438,1706141507105,-500.0,0.00051232,31]
[312664439,1706141507114,-500.0,0.00051232,31]
[312664440,1706141507123,-500.0,0.00051232,31]
[312664441,1706141507132,-500.0,0.00051232,31]
[312664442,1706141507141,-500.0,0.00051232,31]
[312664443,1706141507150,-500.0,0.00051232,31]
[312664444,1706141507159,-500.0,0.00051232,31]
[312664445,1706141507169,-523.13,0.00051232,31]
[312664446,1706141507178,-500.0,0.00051232,31]
[312664447,1706141507188,-500.0,0.00051232,31]
[312664448,1706141507198,-500.0,0.00051232,31]
[312664449,1706141507208,-500.0,0.00051232,31]
[312664450,1706141507217,-500.0,0.00051232,31]
[312664451,1706141507226,-500.0,0.00051232,31]
[312664452,1706141507235,-500.0,0.00051232,31]
[312664453,1706141507244,-539.3,0.00051232,31]
[312664454,1706141507254,-500.0,0.00051232,31]
[312664455,1706141507263,-500.0,0.00051232,31]
[312664456,1706141507272,-500.0,0.00051232,31]
[312664457,1706141507285,-500.0,0.00051232,31]
[312664458,1706141507294,-500.0,0.00051232,31]
[312664459,1706141507303,-616.87980876,0.00051232,31]
[312664460,1706141507313,-500.0,0.00051232,31]
[312664461,1706141507323,-557.24,0.00051232,31]
[312664462,1706141507332,-500.0,0.00051232,31]
[312664463,1706141507341,-500.0,0.00051232,31]
[312664464,1706141507350,-500.0,0.00051232,31]
[312664465,1706141507359,-500.0,0.00051232,31]
[312664466,1706141507369,-500.0,0.00051232,31]
[312664467,1706141507379,-500.0,0.00051232,31]
[312664468,1706141507389,-500.0,0.00051232,31]
[312664469,1706141507399,-500.0,0.00051232,31]
[312664470,1706141507409,-500.0,0.00051232,31]
[312664471,1706141507418,-500.0,0.00051232,31]
[312664472,1706141507428,-596.67,0.00051232,31]
[312664473,1706141507437,-500.0,0.00051232,31]
[312664474,1706141507447,-500.0,0.00051232,31]
[312664475,1706141507456,-529.49751487,0.00051232,31]
[312664476,1706141507465,-500.0,0.00051232,31]
[312664477,1706141507475,-650.62,0.00051232,31]
[312664478,1706141507484,-530.57,0.00051232,31]
[312664479,1706141507494,-590.77,0.00051232,31]
[312664480,1706141507503,-500.0,0.00051232,31]
[312664481,1706141507514,-500.0,0.00051232,31]
[312664482,1706141507524,-500.0,0.00051232,31]
[312664483,1706141507533,-500.0,0.00051232,31]
[312664484,1706141507542,-500.0,0.00051232,31]
[312664485,1706141507551,-500.0,0.00051232,31]
[312664486,1706141507561,-529.72,0.00051232,31]
[312664487,1706141507570,-500.0,0.00051232,31]
[312664488,1706141507581,-537.66,0.00051232,31]
[312664489,1706141507591,-500.0,0.00051232,31]
[312664490,1706141507601,-500.0,0.00051232,31]
[312664491,1706141507610,-668.66,0.00051232,31]
[312664492,1706141507620,-500.0,0.00051232,31]
[312664493,1706141507629,-500.0,0.00051232,31]
[312664494,1706141507639,-500.0,0.00051232,31]
[312664495,1706141507648,-500.0,0.00051232,31]
[312664496,1706141507658,-992.14,0.00051232,120]
[312664497,1706141507667,-500.0,0.00051232,31]
[312664498,1706141507676,-500.0,0.00051232,31]
[312664499,1706141507686,-500.0,0.00051232,31]
[312664500,1706141507695,-502.97,0.00051232,31]
[312664501,1706141507705,-500.0,0.00051232,31]
[312664502,1706141507714,-500.0,0.00051232,31]
[312664503,1706141507723,-500.0,0.00051232,31]
[312664504,1706141507733,-500.0,0.00051232,31]
[312664505,1706141507742,-500.0,0.00051232,31]
[312664506,1706141507751,-500.0,0.00051232,31]
[312664507,1706141507761,-500.0,0.00051232,31]
[312664508,1706141507771,-500.0,0.00051232,31]
[312664509,1706141507781,-500.0,0.00051232,31]
[312664510,1706141507790,-500.0,0.00051232,31]
[312664511,1706141507800,-626.76,0.00051232,31]
[312664512,1706141507809,-204.05457712,0.00051232,31]
[312664513,1706141507818,-524.2,0.00051232,31]
[312664514,1706141507828,-500.0,0.00051232,31]
[312664515,1706141507839,-500.0,0.00051232,31]
[312664516,1706141507850,-446.08941046,0.00051232,31]
[312664517,1706141507860,-500.0,0.00051232,31]
[312664518,1706141507870,-285.93852922,0.00051232,31]
[312664519,1706141507879,-500.0,0.00051232,31]
[312664520,1706141507889,-697.72,0.00051232,2]
[312664521,1706141507898,-500.0,0.00051232,31]
[312664522,1706141507908,-500.0,0.00051232,31]
[312664523,1706141507918,-609.274206,0.00051232,31]
[312664524,1706141507928,-500.0,0.00051232,31]
[312664525,1706141507937,-502.99,0.00051232,31]
[312664526,1706141507947,-500.0,0.00051232,31]
[312664527,1706141507956,-326.6758344,0.00051232,31]
[312664528,1706141507965,-500.0,0.00051232,31]
[312664529,1706141507974,-500.0,0.00051232,31]
[312664530,1706141507983,-500.0,0.00051232,31]
[312664531,1706141507993,-500.0,0.00051232,31]
[312664532,1706141508003,-500.0,0.00051232,31]
[312664533,1706141508012,-1084.63,0.00051232,31]
[312664534,1706141508021,-604.34304663,0.00051232,31]
[312664535,1706141508030,-500.0,0.00051232,31]
[312664536,1706141508039,-500.0,0.00051232,31]
[312664537,1706141508049,-500.0,0.00051232,31]
[312664538,1706141508058,-500.0,0.00051232,31]
[312664539,1706141508067,-500.0,0.00051232,31]
[312664540,1706141508077,-500.0,0.00051232,31]
[312664541,1706141508087,-500.0,0.00051232,31]
[312664542,1706141508096,-500.0,0.00051232,31]
[312664543,1706141508105,-500.0,0.00051232,31]
[312664544,1706141508114,-500.0,0.00051232,31]
[312664545,1706141508123,-500.0,0.00051232,31]
[312664546,1706141508133,-500.0,0.00051232,31]
[312664547,1706141508142,-500.0,0.00051232,31]
[312664548,1706141508152,-500.0,0.00051232,31]
[312664549,1706141508161,-563.82,0.00051232,31]
[312664550,1706141508171,-500.0,0.00051232,31]
[312664551,1706141508181,-469.65640682,0.00051232,31]
[312664552,1706141508190,-1246.63,0.00051232,7]
[312664553,1706141508199,-500.0,0.00051232,31]
[312664554,1706141508209,-500.0,0.00051232,31]
[312664555,1706141508219,-669.25,0.00051232,20]
[312664556,1706141508228,-528.58295501,0.00051232,31]
[312664557,1706141508238,-500.0,0.00051232,31]
[312664558,1706141508248,-500.0,0.00051232,31]
[312664559,1706141508257,-500.0,0.00051232,31]
[312664560,1706141508266,-500.0,0.00051232,31]
[312664561,1706141508276,-500.0,0.00051232,31]
[312664562,1706141508286,-500.0,0.00051232,31]
[312664563,1706141508296,-500.0,0.00051232,31]
[312664564,1706141508308,-500.0,0.00051232,31]
[312664565,1706141508318,-500.0,0.00051232,31]
[312664566,1706141508327,-500.0,0.00051232,31]
[312664567,1706141508339,-500.0,0.00051232,31]
[312664568,1706141508349,-500.0,0.00051232,31]
[312664569,1706141508359,-500.0,0.00051232,31]
[312664570,1706141508369,-195.8383621,0.00051232,31]
[312664571,1706141508382,-500.0,0.00051232,31]
[312664572,1706141508392,-500.0,0.00051232,31]
[312664573,1706141508402,-523.88,0.00051232,31]
[312664574,1706141508411,-500.0,0.00051232,31]
[312664575,1706141508421,-500.0,0.00051232,14]
[312664576,1706141508431,-500.0,0.00051232,31]
[312664577,1706141508441,-500.0,0.00051232,31]
[312664578,1706141508451,-500.0,0.00051232,31]
[312664579,1706141508460,-500.0,0.00051232,31]
[312664580,1706141508470,-1233.91,0.00051232,7]
[312664581,1706141508480,-1157.14,0.00051232,31]
[312664582,1706141508490,-526.57,0.00051232,31]
[312664583,1706141508499,-500.0,0.00051232,31]
[312664584,1706141508509,-500.0,0.00051232,31]
[312664585,1706141508518,-500.0,0.00051232,31]
[312664586,1706141508528,-500.0,0.00051232,31]
[312664587,1706141508538,-500.0,0.00051232,31]
[312664588,1706141508548,-500.0,0.00051232,31]
[312664589,1706141508557,-500.0,0.00051232,31]
[312664590,1706141508567,-594.98,0.00051232,31]
[312664591,1706141508576,-500.0,0.00051232,31]
[312664592,1706141508586,-4118.15,0.00051232,15]
[312664593,1706141508596,-500.0,0.00051232,31]
[312664594,1706141508605,-500.0,0.00051232,31]
[312664595,1706141508615,-500.0,0.00051232,31]
[312664596,1706141508624,-500.0,0.00051232,31]
[312664597,1706141508633,-621.48,0.00051232,31]
[312664598,1706141508642,-500.0,0.00051232,31]
[312664599,1706141508651,-513.73418246,0.00051232,31]
[312664600,1706141508661,-1968.51,0.00051232,31]
[312664601,1706141508670,-500.0,0.00051232,31]
[312664602,1706141508679,-500.0,0.00051232,31]
[312664603,1706141508688,-500.0,0.00051232,31]
[312664604,1706141508698,-500.0,0.00051232,31]
[312664605,1706141508707,-557.9982693,0.00051232,31]
[312664606,1706141508716,-500.0,0.00051232,31]
[312664607,1706141508726,-500.0,0.00051232,31]
[312664608,1706141508735,-937.73,0.00051232,2]
[312664609,1706141508744,-500.0,0.00051232,31]
[312664610,1706141508754,-500.0,0.00051232,31]
[312664611,1706141508763,-500.0,0.00051232,31]
[312664612,1706141508772,-500.0,0.00051232,31]
[312664613,1706141508781,-4141.1,0.00051232,31]
[312664614,1706141508791,-477.41345298,0.00051232,31]
[312664615,1706141508800,-500.0,0.00051232,31]
[312664616,1706141508809,-500.0,0.00051232,31]
[312664617,1706141508818,-500.0,0.00051232,31]
[312664618,1706141508828,-500.0,0.00051232,31]
[312664619,1706141508839,-500.0,0.00051232,31]